fUST/lending_fUST_20250210
["ID","MTS","AMOUNT","RATE_DAILY","PERIOD"]
[352538581,1739157053278,-1093.78,0.00012465,2]
[352538582,1739157053288,-500.0,0.00012465,2]
[352538583,1739157053297,-1665.25,0.00012465,2]
[352538584,1739157053307,-799.58,0.00012465,2]
[352538585,1739157053316,-597.05,0.00012465,2]
[352538586,1739157053327,-500.0,0.00012465,2]
[352538587,1739157053338,-3190.8,0.00012465,2]
[352538588,1739157053348,-2682.37,0.00012465,2]
[352538589,1739157053357,-682.52,0.00012465,2]
[352538590,1739157053367,-2927.1,0.00012465,2]
[352538591,1739157053376,-1676.49,0.00012465,2]
[352538592,1739157053385,-500.0,0.00012465,2]
[352538593,1739157053395,-500.0,0.00012465,2]
[352538594,1739157053405,-931.74,0.00012465,2]
[352538595,1739157053415,-1098.14,0.00012465,2]
[352538596,1739157053426,-10232.11,0.00012465,2]
[352538597,1739157053435,-18681.61,0.00012465,2]
[352538598,1739157053445,-500.0,0.00012465,2]
[352538599,1739157053455,-365.91344976,0.00012465,2]
[352538600,1739157053465,-1035.6,0.00012465,2]
[352538601,1739157053475,-1217.71,0.00012465,2]
[352538602,1739157053485,-500.0,0.00012465,2]
[352538603,1739157053495,-505.03,0.00012465,2]
[352538604,1739157053505,-505.73,0.00012465,2]
[352538605,1739157053515,-1278.35,0.00012465,2]
[352538606,1739157053524,-500.0,0.00012465,2]
[352538607,1739157053534,-1105.55,0.00012465,2]
[352538608,1739157053544,-641.17702275,0.00012465,2]
[352538609,1739157053554,-1800.75,0.00012465,2]
[352538610,1739157053564,-500.0,0.00012465,2]
[352538611,1739157053573,-693.92,0.00012465,2]
[352538612,1739157053584,-765.33,0.00012465,2]
[352538613,1739157053593,-1709.66,0.00012465,2]
[352538614,1739157053603,-500.0,0.00012465,2]
[352538615,1739157053613,-500.0,0.00012465,2]
[352538616,1739157053622,-647.22,0.00012465,2]
[352538617,1739157053632,-910.77,0.00012465,2]
[352538618,1739157053642,-853.86,0.00012465,2]
[352538619,1739157053652,-683.67,0.00012465,2]
[352538620,1739157053662,-669.08,0.00012465,2]
[352538621,1739157053673,-500.0,0.00012465,2]
[352538622,1739157053683,-2146.0,0.00012465,2]
[352538623,1739157053692,-500.0,0.00012465,2]
[352538624,1739157053702,-717.2,0.00012465,2]
[352538625,1739157053712,-3892.37,0.00012465,2]
[352538626,1739157053721,-500.0,0.00012465,2]
[352538627,1739157053730,-799.16,0.00012465,2]
[352538628,1739157053739,-610.47,0.00012465,2]
[352538629,1739157053749,-1303.99661224,0.00012494,2]
[352538630,1739157053759,-500.64374856,0.00012507,2]
[352538631,1739157053768,-500.0,0.00012602,2]
[352538632,1739157053778,-500.0,0.00012602,2]
[352538633,1739157053788,-500.0,0.00012602,2]
[352538634,1739157053798,-552.56,0.00012602,2]
[352538635,1739157053811,-500.0,0.00012602,2]
[352538636,1739157053820,-500.0,0.00012602,2]
[352538637,1739157053829,-673.68,0.00012602,2]
[352538638,1739157053839,-500.0,0.00012602,2]
[352538639,1739157053849,-500.0,0.00012602,2]
[352538640,1739157053860,-1093.78,0.00012602,2]
[352538641,1739157053869,-500.0,0.00012602,2]
[352538642,1739157053878,-1665.25,0.00012602,2]
[352538643,1739157053888,-799.58,0.00012602,2]
[352538644,1739157053897,-597.05,0.00012602,2]
[352538645,1739157053907,-500.0,0.00012602,2]
[352538646,1739157053917,-3190.8,0.00012602,2]
[352538647,1739157053926,-2682.37,0.00012602,2]
[352538648,1739157053936,-682.52,0.00012602,2]
[352538649,1739157053945,-2927.1,0.00012602,2]
[352538650,1739157053954,-1676.49,0.00012602,2]
[352538651,1739157053963,-500.0,0.00012602,2]
[352538652,1739157053973,-500.0,0.00012602,2]
[352538653,1739157053982,-931.74,0.00012602,2]
[352538654,1739157053992,-1098.14,0.00012602,2]
[352538655,1739157054001,-10232.11,0.00012602,2]
[352538656,1739157054011,-18681.61,0.00012602,2]
[352538657,1739157054020,-455.69066298,0.00012602,2]
[352538658,1739157054029,-1035.6,0.00012602,2]
[352538659,1739157054039,-1217.71,0.00012602,2]
[352538660,1739157054049,-500.0,0.00012602,2]
[352538661,1739157054058,-505.03,0.00012602,2]
[352538662,1739157054068,-505.73,0.00012602,2]
[352538663,1739157054077,-1278.35,0.00012602,2]
[352538664,1739157054087,-500.0,0.00012602,2]
[352538665,1739157054097,-1105.55,0.00012602,2]
[352538666,1739157054106,-1800.75,0.00012602,2]
[352538667,1739157054116,-500.0,0.00012602,2]
[352538668,1739157054125,-693.92,0.00012602,2]
[352538669,1739157054134,-765.33,0.00012602,2]
[352538670,1739157054144,-1709.66,0.00012602,2]
[352538671,1739157054153,-500.0,0.00012602,2]
[352538672,1739157054163,-500.0,0.00012602,2]
[352538673,1739157054173,-647.22,0.00012602,2]
[352538674,1739157054183,-910.77,0.00012602,2]
[352538675,1739157054193,-853.86,0.00012602,2]
[352538676,1739157054203,-683.67,0.00012602,2]
[352538677,1739157054213,-669.08,0.00012602,2]
[352538678,1739157054223,-241.94063326,0.00012602,2]
[352538679,1739157054233,-2146.0,0.00012602,2]
[352538680,1739157054243,-500.0,0.00012602,2]
[352538681,1739157054330,-717.2,0.00012602,2]
[352538682,1739157054341,-3892.37,0.00012602,2]
[352538683,1739157054351,-500.0,0.00012602,2]
[352538684,1739157054362,-799.16,0.00012602,2]
[352538685,1739157054373,-610.47,0.00012602,2]
[352538686,1739157054382,-500.0,0.00012739,2]
[352538687,1739157054392,-622.15,0.00012739,2]
[352538688,1739157054402,-500.0,0.00012739,2]
[352538689,1739157054411,-552.56,0.00012739,2]
[352538690,1739157054421,-500.0,0.00012739,2]
[352538691,1739157054431,-500.0,0.00012739,2]
[352538692,1739157054441,-673.68,0.00012739,2]
[352538693,1739157054451,-500.0,0.00012739,2]
[352538694,1739157054460,-500.0,0.00012739,2]
[352538695,1739157054470,-1093.78,0.00012739,2]
[352538696,1739157054480,-500.0,0.00012739,2]
[352538697,1739157054489,-1665.25,0.00012739,2]
[352538698,1739157054499,-799.58,0.00012739,2]
[352538699,1739157054510,-597.05,0.00012739,2]
[352538700,1739157054520,-500.0,0.00012739,2]
[352538701,1739157054529,-3190.8,0.00012739,2]
[352538702,1739157054539,-2682.37,0.00012739,2]
[352538703,1739157054549,-682.52,0.00012739,2]
[352538704,1739157054559,-2927.1,0.00012739,2]
[352538705,1739157054569,-1676.49,0.00012739,2]
[352538706,1739157054578,-500.0,0.00012739,2]
[352538707,1739157054589,-500.0,0.00012739,2]
[352538708,1739157054599,-931.74,0.00012739,2]
[352538709,1739157054609,-1098.14,0.00012739,2]
[352538710,1739157054619,-10232.11,0.00012739,2]
[352538711,1739157054629,-18681.61,0.00012739,2]
[352538712,1739157054639,-1035.6,0.00012739,2]
[352538713,1739157054649,-1217.71,0.00012739,2]
[352538714,1739157054659,-500.0,0.00012739,2]
[352538715,1739157054669,-505.03,0.00012739,2]
[352538716,1739157054679,-505.73,0.00012739,2]
[352538717,1739157054689,-1278.35,0.00012739,2]
[352538718,1739157054699,-500.0,0.00012739,2]
[352538719,1739157054709,-1105.55,0.00012739,2]
[352538720,1739157054719,-1800.75,0.00012739,2]
[352538721,1739157054730,-500.0,0.00012739,2]
[352538722,1739157054740,-693.92,0.00012739,2]
[352538723,1739157054750,-765.33,0.00012739,2]
[352538724,1739157054759,-1709.66,0.00012739,2]
[352538725,1739157054769,-500.0,0.00012739,2]
[352538726,1739157054779,-500.0,0.00012739,2]
[352538727,1739157054789,-647.22,0.00012739,2]
[352538728,1739157054800,-910.77,0.00012739,2]
[352538729,1739157054813,-853.86,0.00012739,2]
[352538730,1739157054823,-683.67,0.00012739,2]
[352538731,1739157054834,-669.08,0.00012739,2]
[352538732,1739157054843,-2146.0,0.00012739,2]
[352538733,1739157054854,-500.0,0.00012739,2]
[352538734,1739157054865,-717.2,0.00012739,2]
[352538735,1739157054875,-3892.37,0.00012739,2]
[352538736,1739157054885,-500.0,0.00012739,2]
[352538737,1739157054897,-799.16,0.00012739,2]
[352538738,1739157054907,-610.47,0.00012739,2]
[352538739,1739157054917,-500.0,0.00012876,2]
[352538740,1739157054927,-552.56,0.00012876,2]
[352538741,1739157054937,-500.0,0.00012876,2]
[352538742,1739157054947,-212.874582,0.00012876,2]
[352538743,1739157054957,-500.0,0.00012876,2]
[352538744,1739157054967,-673.68,0.00012876,2]
[352538745,1739157054977,-500.0,0.00012876,2]
[352538746,1739157054987,-500.0,0.00012876,2]
[352538747,1739157054997,-1093.78,0.00012876,2]
[352538748,1739157055007,-259.62634308,0.00012876,2]
[352538749,1739157055018,-1665.25,0.00012876,2]
[352538750,1739157055027,-799.58,0.00012876,2]
[352538751,1739157055037,-597.05,0.00012876,2]
[352538752,1739157055047,-500.0,0.00012876,2]
[352538753,1739157055057,-3190.8,0.00012876,2]
[352538754,1739157055067,-2682.37,0.00012876,2]
[352538755,1739157055077,-682.52,0.00012876,2]
[352538756,1739157055087,-2927.1,0.00012876,2]
[352538757,1739157055098,-1676.49,0.00012876,2]
[352538758,1739157055108,-500.0,0.00012876,2]
[352538759,1739157055118,-623.44057273,0.00012876,2]
[352538760,1739157055128,-931.74,0.00012876,2]
[352538761,1739157055137,-1098.14,0.00012876,2]
[352538762,1739157055147,-10232.11,0.00012876,2]
[352538763,1739157055157,-18681.61,0.00012876,2]
[352538764,1739157055167,-1035.6,0.00012876,2]
[352538765,1739157055177,-151.0,0.00012876,2]
[352538766,1739157055186,-1217.71,0.00012876,2]
[352538767,1739157055196,-500.0,0.00012876,2]
[352538768,1739157055206,-151.0,0.00012876,2]
[352538769,1739157055216,-151.0,0.00012876,2]
[352538770,1739157055225,-505.03,0.00012876,2]
[352538771,1739157055235,-505.73,0.00012876,2]
[352538772,1739157055245,-1278.35,0.00012876,2]
[352538773,1739157055255,-239.19167494,0.00012876,2]
[352538774,1739157055265,-1105.55,0.00012876,2]
[352538775,1739157055275,-1800.75,0.00012876,2]
[352538776,1739157055285,-500.0,0.00012876,2]
[352538777,1739157055295,-151.0,0.00012876,2]
[352538778,1739157055305,-693.92,0.00012876,2]
[352538779,1739157055315,-765.33,0.00012876,2]
[352538780,1739157055325,-1709.66,0.00012876,2]
[352538781,1739157055336,-500.0,0.00012876,2]
[352538782,1739157055346,-500.0,0.00012876,2]
[352538783,1739157055423,-647.22,0.00012876,2]
[352538784,1739157055433,-910.77,0.00012876,2]
[352538785,1739157055444,-853.86,0.00012876,2]
[352538786,1739157055454,-683.67,0.00012876,2]
[352538787,1739157055464,-669.08,0.00012876,2]
[352538788,1739157055474,-2146.0,0.00012876,2]
[352538789,1739157055484,-151.0,0.00012876,2]
[352538790,1739157055493,-500.0,0.00012876,2]
[352538791,1739157055503,-717.2,0.00012876,2]
[352538792,1739157055512,-3892.37,0.00012876,2]
[352538793,1739157055523,-151.0,0.00012876,2]
[352538794,1739157055533,-500.0,0.00012876,2]
[352538795,1739157055543,-151.0,0.00012876,2]
[352538796,1739157055552,-799.16,0.00012876,2]
[352538797,1739157055562,-610.47,0.00012876,2]
[352538798,1739157055572,-461.88731758,0.00012886,2]
[352538799,1739157055582,-2511.02661902,0.000129,2]
[352538800,1739157055592,-2511.02661897,0.000129,2]
[352538801,1739157055603,-2511.02661897,0.000129,2]
[352538802,1739157055612,-883.47730321,0.00013,2]
[352538803,1739157055711,-6555.22022957,0.00013,2]
[352538804,1739157055722,-500.0,0.00013013,2]
[352538805,1739157055731,-552.56,0.00013013,2]
[352538806,1739157055741,-500.0,0.00013013,2]
[352538807,1739157055749,-500.0,0.00013013,2]
[352538808,1739157055759,-673.68,0.00013013,2]
[352538809,1739157055768,-500.0,0.00013013,2]
[352538810,1739157055777,-500.0,0.00013013,2]
[352538811,1739157055798,-151.0,0.00013013,2]
[352538812,1739157055816,-151.0,0.00013013,2]
[352538813,1739157055836,-1093.78,0.00013013,2]
[352538814,1739157055857,-409.255933,0.00013013,2]
[352538815,1739157055877,-409.255933,0.00013013,2]
[352538816,1739157055896,-1665.25,0.00013013,2]
[352538817,1739157055912,-799.58,0.00013013,2]
[352538818,1739157055928,-597.05,0.00013013,2]
[352538819,1739157055949,-500.0,0.00013013,2]
[352538820,1739157055969,-3190.8,0.00013013,2]
[352538821,1739157055985,-151.0,0.00013013,2]
[352538822,1739157056002,-2682.37,0.00013013,2]
[352538823,1739157056017,-151.0,0.00013013,2]
[352538824,1739157056033,-682.52,0.00013013,2]
[352538825,1739157056048,-2927.1,0.00013013,2]
[352538826,1739157056064,-1676.49,0.00013013,2]
[352538827,1739157056079,-500.0,0.00013013,2]
[352538828,1739157056096,-931.74,0.00013013,2]
[352538829,1739157056111,-1098.14,0.00013013,2]
[352538830,1739157056125,-10232.11,0.00013013,2]
[352538831,1739157056140,-18681.61,0.00013013,2]
[352538832,1739157056155,-1035.6,0.00013013,2]
[352538833,1739157056170,-239.790532,0.00013013,2]
[352538834,1739157056183,-1217.71,0.00013013,2]
[352538835,1739157056194,-500.0,0.00013013,2]
[352538836,1739157056203,-239.790532,0.00013013,2]
[352538837,1739157056215,-505.03,0.00013013,2]
[352538838,1739157056224,-505.73,0.00013013,2]
[352538839,1739157056234,-151.0,0.00013013,2]
[352538840,1739157056244,-151.0,0.00013013,2]
[352538841,1739157056255,-1278.35,0.00013013,2]
[352538842,1739157056265,-1105.55,0.00013013,2]
[352538843,1739157056275,-1800.75,0.00013013,2]
[352538844,1739157056286,-500.0,0.00013013,2]
[352538845,1739157056297,-693.92,0.00013013,2]
[352538846,1739157056307,-765.33,0.00013013,2]
[352538847,1739157056317,-1709.66,0.00013013,2]
[352538848,1739157056327,-500.0,0.00013013,2]
[352538849,1739157056337,-500.0,0.00013013,2]
[352538850,1739157056347,-647.22,0.00013013,2]
[352538851,1739157056357,-910.77,0.00013013,2]
[352538852,1739157056367,-853.86,0.00013013,2]
[352538853,1739157056377,-683.67,0.00013013,2]
[352538854,1739157056386,-669.08,0.00013013,2]
[352538855,1739157056396,-2146.0,0.00013013,2]
[352538856,1739157056405,-500.0,0.00013013,2]
[352538857,1739157056603,-717.2,0.00013013,2]
[352538858,1739157056614,-3892.37,0.00013013,2]
[352538859,1739157056624,-500.0,0.00013013,2]
[352538860,1739157056634,-799.16,0.00013013,2]
[352538861,1739157056644,-151.0,0.0001315,2]
[352538862,1739157056653,-151.0,0.0001315,2]
[352538863,1739157056663,-512.07660605,0.0001315,2]
[352538864,1739157056672,-552.56,0.0001315,2]
[352538865,1739157056682,-500.0,0.0001315,2]
[352538866,1739157056692,-388.12602959,0.0001315,2]
[352538867,1739157056701,-673.68,0.0001315,2]
[352538868,1739157056711,-393.12,0.0001315,2]
[352538869,1739157056722,-500.0,0.0001315,2]
[352538870,1739157056731,-1093.78,0.0001315,2]
[352538871,1739157056741,-1665.25,0.0001315,2]
[352538872,1739157056752,-799.58,0.0001315,2]
[352538873,1739157056762,-597.05,0.0001315,2]
[352538874,1739157056772,-500.0,0.0001315,2]
[352538875,1739157056782,-3190.8,0.0001315,2]
[352538876,1739157056792,-2682.37,0.0001315,2]
[352538877,1739157056801,-682.52,0.0001315,2]
[352538878,1739157056814,-2927.1,0.0001315,2]
[352538879,1739157056825,-1676.49,0.0001315,2]
[352538880,1739157056836,-500.0,0.0001315,2]
[352538881,1739157056845,-931.74,0.0001315,2]
[352538882,1739157056856,-1098.14,0.0001315,2]
[352538883,1739157056866,-10232.11,0.0001315,2]
[352538884,1739157056875,-18681.61,0.0001315,2]
[352538885,1739157056885,-1035.6,0.0001315,2]
[352538886,1739157056896,-1217.71,0.0001315,2]
[352538887,1739157056906,-500.0,0.0001315,2]
[352538888,1739157056915,-505.03,0.0001315,2]
[352538889,1739157056925,-505.73,0.0001315,2]
[352538890,1739157056935,-1278.35,0.0001315,2]
[352538891,1739157056944,-1105.55,0.0001315,2]
[352538892,1739157056954,-1800.75,0.0001315,2]
[352538893,1739157056964,-500.0,0.0001315,2]
[352538894,1739157056974,-693.92,0.0001315,2]
[352538895,1739157056984,-765.33,0.0001315,2]
[352538896,1739157056994,-1709.66,0.0001315,2]
[352538897,1739157057003,-439.06556329,0.0001315,2]
[352538898,1739157057014,-500.0,0.0001315,2]
[352538899,1739157057023,-647.22,0.0001315,2]
[352538900,1739157057032,-910.77,0.0001315,2]
[352538901,1739157057042,-853.86,0.0001315,2]
[352538902,1739157057051,-683.67,0.0001315,2]
[352538903,1739157057061,-669.08,0.0001315,2]
[352538904,1739157057070,-2146.0,0.0001315,2]
[352538905,1739157057079,-500.0,0.0001315,2]
[352538906,1739157057090,-717.2,0.0001315,2]
[352538907,1739157057099,-3892.37,0.0001315,2]
[352538908,1739157057109,-500.0,0.0001315,2]
[352538909,1739157057117,-799.16,0.0001315,2]
[352538910,1739157057127,-151.0,0.000132,2]
[352538911,1739157057136,-152.548489,0.00013287,2]
[352538912,1739157057145,-151.0,0.00013287,2]
[352538913,1739157057155,-552.56,0.00013287,2]
[352538914,1739157057165,-188.591507,0.00013287,2]
[352538915,1739157057175,-188.591507,0.00013287,2]
[352538916,1739157057184,-354.58,0.00013287,2]
[352538917,1739157057194,-151.0,0.00013287,2]
[352538918,1739157057203,-673.68,0.00013287,2]
[352538919,1739157057213,-179.6745936,0.00013287,2]
[352538920,1739157057222,-238.711411,0.00013287,2]
[352538921,1739157057232,-238.711411,0.00013287,2]
[352538922,1739157057241,-1093.78,0.00013287,2]
[352538923,1739157057251,-1665.25,0.00013287,2]
[352538924,1739157057261,-799.58,0.00013287,2]
[352538925,1739157057270,-597.05,0.00013287,2]
[352538926,1739157057280,-352.31379571,0.00013287,2]
[352538927,1739157057290,-3190.8,0.00013287,2]
[352538928,1739157057299,-2682.37,0.00013287,2]
[352538929,1739157057308,-682.52,0.00013287,2]
[352538930,1739157057317,-2927.1,0.00013287,2]
[352538931,1739157057327,-1676.49,0.00013287,2]
[352538932,1739157057338,-500.0,0.00013287,2]
[352538933,1739157057347,-931.74,0.00013287,2]
[352538934,1739157057357,-1098.14,0.00013287,2]
[352538935,1739157057367,-10232.11,0.00013287,2]
[352538936,1739157057377,-18681.61,0.00013287,2]
[352538937,1739157057386,-1035.6,0.00013287,2]
[352538938,1739157057396,-1217.71,0.00013287,2]
[352538939,1739157057406,-500.0,0.00013287,2]
[352538940,1739157057416,-505.03,0.00013287,2]
[352538941,1739157057425,-505.73,0.00013287,2]
[352538942,1739157057435,-1278.35,0.00013287,2]
[352538943,1739157057444,-1105.55,0.00013287,2]
[352538944,1739157057454,-1800.75,0.00013287,2]
[352538945,1739157057464,-500.0,0.00013287,2]
[352538946,1739157057474,-693.92,0.00013287,2]
[352538947,1739157057484,-765.33,0.00013287,2]
[352538948,1739157057493,-1709.66,0.00013287,2]
[352538949,1739157057502,-500.0,0.00013287,2]
[352538950,1739157057512,-647.22,0.00013287,2]
[352538951,1739157057521,-910.77,0.00013287,2]
[352538952,1739157057531,-853.86,0.00013287,2]
[352538953,1739157057540,-683.67,0.00013287,2]
[352538954,1739157057550,-669.08,0.00013287,2]
[352538955,1739157057560,-2146.0,0.00013287,2]
[352538956,1739157057569,-500.0,0.00013287,2]
[352538957,1739157057579,-717.2,0.00013287,2]
[352538958,1739157057590,-3892.37,0.00013287,2]
[352538959,1739157057600,-500.0,0.00013287,2]
[352538960,1739157057609,-799.16,0.00013287,2]
[352538961,1739157057619,-151.01526129,0.00013368,2]
[352538962,1739157057629,-700.0,0.00013385,2]
[352538963,1739157057639,-9026.06837269,0.00013424,5]
[352538964,1739157057648,-552.56,0.00013424,2]
[352538965,1739157057658,-673.68,0.00013424,2]
[352538966,1739157057667,-1093.78,0.00013424,2]
[352538967,1739157057677,-1665.25,0.00013424,2]
[352538968,1739157057686,-799.58,0.00013424,2]
[352538969,1739157057695,-597.05,0.00013424,2]
[352538970,1739157057705,-3190.8,0.00013424,2]
[352538971,1739157057715,-2682.37,0.00013424,2]
[352538972,1739157057724,-682.52,0.00013424,2]
[352538973,1739157057734,-2927.1,0.00013424,2]
[352538974,1739157057744,-1676.49,0.00013424,2]
[352538975,1739157057755,-500.0,0.00013424,2]
[352538976,1739157057764,-931.74,0.00013424,2]
[352538977,1739157057774,-1098.14,0.00013424,2]
[352538978,1739157057784,-10232.11,0.00013424,2]
[352538979,1739157057794,-18681.61,0.00013424,2]
[352538980,1739157057806,-1035.6,0.00013424,2]
[352538981,1739157057821,-1217.71,0.00013424,2]
[352538982,1739157057833,-500.0,0.00013424,2]
[352538983,1739157057850,-505.03,0.00013424,2]
[352538984,1739157057862,-505.73,0.00013424,2]
[352538985,1739157057873,-1278.35,0.00013424,2]
[352538986,1739157057884,-1105.55,0.00013424,2]
[352538987,1739157057898,-1800.75,0.00013424,2]
[352538988,1739157057910,-500.0,0.00013424,2]
[352538989,1739157057920,-693.92,0.00013424,2]
[352538990,1739157057931,-765.33,0.00013424,2]
[352538991,1739157057942,-1709.66,0.00013424,2]
[352538992,1739157057952,-647.22,0.00013424,2]
[352538993,1739157057963,-500.0,0.00013424,2]
[352538994,1739157057973,-910.77,0.00013424,2]
[352538995,1739157057984,-853.86,0.00013424,2]
[352538996,1739157057995,-683.67,0.00013424,2]
[352538997,1739157058005,-669.08,0.00013424,2]
[352538998,1739157058015,-2146.0,0.00013424,2]
[352538999,1739157058024,-500.0,0.00013424,2]
[352539000,1739157058034,-717.2,0.00013424,2]
[352539001,1739157058045,-3892.37,0.00013424,2]
[352539002,1739157058055,-500.0,0.00013424,2]
[352539003,1739157058065,-799.16,0.00013424,2]
[352539004,1739157058074,-500.0,0.00013451,2]
[352539005,1739157058084,-461.88731758,0.0001349,2]
[352539006,1739157058100,-151.0,0.000135,2]
[352539007,1739157058109,-2511.02661897,0.00013506,2]
[352539008,1739157058119,-51169.95274734,0.00013561,5]
[352539009,1739157058129,-151.0,0.00013561,2]
[352539010,1739157058138,-151.0,0.00013561,2]
[352539011,1739157058147,-552.56,0.00013561,2]
[352539012,1739157058157,-191.472735,0.00013561,2]
[352539013,1739157058166,-191.472735,0.00013561,2]
[352539014,1739157058176,-151.0,0.00013561,2]
[352539015,1739157058185,-673.68,0.00013561,2]
[352539016,1739157058194,-151.0,0.00013561,2]
[352539017,1739157058204,-151.0,0.00013561,2]
[352539018,1739157058213,-1093.78,0.00013561,2]
[352539019,1739157058223,-1665.25,0.00013561,2]
[352539020,1739157058232,-799.58,0.00013561,2]
[352539021,1739157058242,-597.05,0.00013561,2]
[352539022,1739157058251,-3190.8,0.00013561,2]
[352539023,1739157058261,-2682.37,0.00013561,2]
[352539024,1739157058270,-682.52,0.00013561,2]
[352539025,1739157058280,-2927.1,0.00013561,2]
[352539026,1739157058290,-1676.49,0.00013561,2]
[352539027,1739157058300,-500.0,0.00013561,2]
[352539028,1739157058310,-931.74,0.00013561,2]
[352539029,1739157058320,-1098.14,0.00013561,2]
[352539030,1739157058329,-10232.11,0.00013561,2]
[352539031,1739157058342,-18681.61,0.00013561,2]
[352539032,1739157058351,-1035.6,0.00013561,2]
[352539033,1739157058361,-1217.71,0.00013561,2]
[352539034,1739157058370,-500.0,0.00013561,2]
[352539035,1739157058380,-505.03,0.00013561,2]
[352539036,1739157058389,-505.73,0.00013561,2]
[352539037,1739157058399,-1278.35,0.00013561,2]
[352539038,1739157058409,-1105.55,0.00013561,2]
[352539039,1739157058419,-1800.75,0.00013561,2]
[352539040,1739157058429,-500.0,0.00013561,2]
[352539041,1739157058439,-693.92,0.00013561,2]
[352539042,1739157058448,-765.33,0.00013561,2]
[352539043,1739157058457,-1709.66,0.00013561,2]
[352539044,1739157058467,-647.22,0.00013561,2]
[352539045,1739157058476,-500.0,0.00013561,2]
[352539046,1739157058486,-910.77,0.00013561,2]
[352539047,1739157058496,-853.86,0.00013561,2]
[352539048,1739157058505,-683.67,0.00013561,2]
[352539049,1739157058515,-669.08,0.00013561,2]
[352539050,1739157058524,-2146.0,0.00013561,2]
[352539051,1739157058534,-500.0,0.00013561,2]
[352539052,1739157058543,-717.2,0.00013561,2]
[352539053,1739157058553,-3892.37,0.00013561,2]
[352539054,1739157058563,-500.0,0.00013561,2]
[352539055,1739157058573,-799.16,0.00013561,2]
[352539056,1739157058583,-501.6191126,0.00013698,14]
[352539057,1739157058596,-552.56,0.00013698,2]
[352539058,1739157058606,-500.23501456,0.00013698,2]
[352539059,1739157058616,-673.68,0.00013698,2]
[352539060,1739157058625,-1093.78,0.00013698,2]
[352539061,1739157058634,-1665.25,0.00013698,2]
[352539062,1739157058644,-799.58,0.00013698,2]
[352539063,1739157058654,-597.05,0.00013698,2]
[352539064,1739157058665,-3190.8,0.00013698,2]
[352539065,1739157058674,-2682.37,0.00013698,2]
[352539066,1739157058683,-682.52,0.00013698,2]
[352539067,1739157058693,-2927.1,0.00013698,2]
[352539068,1739157058703,-1676.49,0.00013698,2]
[352539069,1739157058713,-500.0,0.00013698,2]
[352539070,1739157058723,-931.74,0.00013698,2]
[352539071,1739157058807,-1098.14,0.00013698,2]
[352539072,1739157058819,-10232.11,0.00013698,2]
[352539073,1739157058829,-18681.61,0.00013698,2]
[352539074,1739157058841,-1035.6,0.00013698,2]
[352539075,1739157058851,-1217.71,0.00013698,2]
[352539076,1739157058862,-500.0,0.00013698,2]
[352539077,1739157058872,-505.03,0.00013698,2]
[352539078,1739157058882,-505.73,0.00013698,2]
[352539079,1739157058892,-1278.35,0.00013698,2]
[352539080,1739157058902,-1105.55,0.00013698,2]